bitfinex/quotes_ETHUSD_20250725
["timestamp","ask_amount","ask_price","bid_price","bid_amount"]
[1753411679058,0.2466162,3628.1,3627.7,2.75654337]
[1753411679059,0.24812821,3628.0,3627.5,6.5721]
[1753411679226,0.24841097,3627.9,3627.8,2.75649153]
[1753411679420,0.24841097,3627.9,3627.8,3.22259153]
[1753411680867,0.24841097,3627.9,3627.7,2.75653839]
[1753411681030,0.38601097,3627.8,3627.3,8.82687141]
[1753411681227,0.1376,3627.8,3627.7,2.75656752]
[1753411681441,0.1376,3627.8,3627.2,0.1376]
[1753411681442,0.38616849,3627.8,3626.7,0.8147]
[1753411681797,0.24856407,3627.7,3626.5,2.75747966]
[1753411681943,0.24856407,3627.6,3627.4,2.75673429]
[1753411682264,0.2487111,3627.5,3626.7,2.75729857]
[1753411682471,0.2487111,3627.4,3626.6,6.057]
[1753411682622,0.2487111,3627.3,3626.8,2.7572002]
[1753411682826,0.2487111,3627.2,3626.8,2.75724989]
[1753411683058,0.2487111,3627.1,3626.8,2.7572507]
[1753411683255,0.2487111,3627.0,3626.3,2.75763174]
[1753411683551,0.2487111,3626.9,3626.7,2.75727627]
[1753411683761,0.2487111,3626.8,3626.7,2.75727627]
[1753411684078,0.2487111,3626.8,3626.4,6.037]
[1753411684237,0.4556,3627.8,3626.1,0.04]
[1753411684238,0.2487111,3626.7,3626.1,0.04]
[1753411684576,0.2487111,3626.6,3626.1,0.04]
[1753411684739,0.2487111,3626.5,3626.1,0.04]
[1753411684925,0.2487111,3626.4,3626.2,2.75770779]
[1753411685274,14.5,3627.7,3626.2,2.75770779]
[1753411685275,0.2487111,3626.3,3626.2,2.75770779]
[1753411685434,0.8331,3627.7,3626.2,0.4866]
[1753411685677,0.8331,3628.3,3626.3,0.49367631]
[1753411685877,0.7214547,3628.7,3627.9,2.75638387]
[1753411686073,0.5720125,3628.7,3627.3,0.4661]
[1753411686274,0.5720125,3628.7,3625.8,0.4661]
[1753411686275,0.8331,3628.5,3625.8,0.4661]
[1753411686570,0.8331,3628.5,3624.6,0.004]
[1753411686571,0.55,3627.1,3625.5,2.75821954]
[1753411686798,0.55,3626.9,3625.1,0.5071]
[1753411686961,3.59080779,3626.2,3625.1,0.041]
[1753411687165,1.2887,3626.2,3625.4,2.75825263]
[1753411687362,1.2887,3626.2,3625.2,2.75843645]
[1753411687567,0.55,3627.0,3625.4,2.75829272]
[1753411687775,0.55,3627.0,3625.1,0.041]
[1753411687776,0.8127,3626.7,3625.8,2.75800948]
[1753411687983,0.8127,3626.7,3626.1,2.79777185]
[1753411688207,0.8127,3626.7,3626.1,0.04]
[1753411688695,2.75761259,3626.4,3626.1,0.04]
[1753411688904,2.75750062,3626.5,3626.1,0.04]
[1753411689106,0.4556,3626.3,3626.1,0.04]
[1753411689328,4.14246065,3626.7,3626.1,0.04]
[1753411689329,0.57242524,3626.6,3626.1,0.04]
[1753411689465,0.14954403,3627.0,3626.1,0.04]
[1753411689795,0.72197858,3628.0,3626.1,0.5061]
[1753411690000,0.57243455,3627.9,3627.2,2.75689421]
[1753411690201,0.57243455,3627.8,3627.1,2.75695821]
[1753411690403,0.4556,3628.0,3626.1,0.5061]
[1753411690404,0.57243455,3627.7,3626.1,0.5061]
[1753411690558,0.8226,3627.1,3626.1,0.04]
[1753411690958,2.75741708,3626.6,3626.1,0.04]
[1753411691197,3.21305175,3626.6,3626.1,0.04]
[1753411691398,0.9185,3626.5,3626.1,0.04]
[1753411691601,0.1376,3626.2,3626.1,0.04]
[1753411692168,0.1376,3626.2,3626.1,2.79778384]
[1753411692363,0.1376,3626.2,3626.1,0.04]
[1753411693179,3.30778384,3626.1,3625.1,0.1786]
[1753411693474,7.7207,3626.0,3625.1,0.041]
[1753411693708,0.55,3625.9,3625.1,0.041]
[1753411693910,2.75823943,3625.6,3625.1,0.041]
[1753411694113,0.55,3625.9,3625.1,0.041]
[1753411694294,0.4556,3625.8,3625.1,0.041]
[1753411695168,0.4629,3625.7,3625.1,0.041]
[1753411695508,0.7876,3626.5,3625.1,0.041]
[1753411696129,3.54510013,3626.5,3625.6,2.75814497]
[1753411696411,0.7876,3626.5,3626.1,0.001]
[1753411696567,2.75756718,3626.4,3626.1,0.001]
[1753411696764,2.75763174,3626.3,3626.1,0.001]
[1753411696977,3.70603174,3626.3,3626.1,0.001]
[1753411697177,0.9484,3626.2,3626.1,0.001]
[1753411697401,0.7876,3626.5,3626.1,0.001]
[1753411697604,0.24850622,3626.4,3626.2,2.75770324]
[1753411697806,0.7876,3626.5,3626.1,0.001]
[1753411698007,2.75770779,3626.2,3626.1,0.001]
[1753411698315,3.30770779,3626.2,3626.1,0.001]
[1753411698476,4.50458569,3626.2,3626.1,0.001]
[1753411698678,1.1968779,3626.2,3626.1,0.001]
[1753411698935,0.9484,3626.2,3626.1,0.001]
[1753411699108,0.57268514,3626.6,3626.2,2.75763742]
[1753411699307,0.8032,3627.0,3626.5,2.75744325]
[1753411699481,1.2626,3627.0,3626.5,2.75744325]
[1753411699679,1.2626,3627.0,3626.8,2.75719542]
[1753411699975,6.6854,3627.2,3626.1,0.001]
[1753411700172,0.4594,3626.9,3626.1,0.001]
[1753411700378,2.75757927,3626.4,3626.1,0.001]
[1753411700617,0.55,3626.4,3626.1,0.001]
[1753411700815,0.9484,3626.3,3626.1,0.001]
[1753411701411,0.9484,3626.2,3626.1,0.001]
[1753411701711,0.57255167,3627.0,3626.1,0.001]
[1753411701712,0.4594,3626.8,3626.1,0.001]
[1753411701879,0.489,3627.0,3626.1,0.001]
[1753411702079,2.75761211,3626.4,3626.1,0.001]
[1753411702292,2.75753764,3626.5,3626.1,0.001]
[1753411702502,0.9484,3626.3,3626.1,0.001]
[1753411702687,4.06010779,3626.2,3626.1,0.001]
[1753411702900,5.00850779,3626.2,3626.1,0.001]
[1753411703306,5.14610779,3626.2,3626.1,0.001]
[1753411704317,8.14610779,3626.2,3626.1,0.001]
[1753411704727,8.14610779,3626.2,3626.1,1e-08]
[1753411705722,8.14610779,3626.2,3625.1,0.04]
[1753411705723,3.58826849,3625.2,3625.1,0.04]
[1753411705923,9.61686849,3625.2,3625.1,0.04]
[1753411706127,10.10586849,3625.2,3625.1,0.04]
[1753411706286,10.56526849,3625.2,3625.1,0.04]
[1753411706484,11.11526849,3625.2,3625.1,0.04]
[1753411707024,14.11526849,3625.2,3625.1,0.04]
[1753411708128,14.11526849,3625.2,3625.1,1e-08]
[1753411708504,18.11526849,3625.2,3625.1,1e-08]
[1753411709433,4.060149,3624.7,3624.5,15.0]
[1753411709588,6.51022512,3624.6,3624.5,1e-08]
[1753411709788,7.59622512,3624.6,3624.5,1e-08]
[1753411709988,5.00862512,3624.6,3624.5,1e-08]
[1753411710204,8.0957,3624.6,3624.5,1e-08]
[1753411710433,6.5993,3624.6,3624.5,1e-08]
[1753411710603,0.782,3625.2,3625.0,2.75862068]
[1753411710927,0.782,3625.2,3624.5,0.43480001]
[1753411710928,5.846,3626.1,3625.1,0.4348]
[1753411711236,0.782,3626.3,3625.1,0.4348]
[1753411711527,0.9484,3626.9,3625.1,0.4348]
[1753411711731,0.04,3626.9,3625.5,2.75824024]
[1753411711936,5.885,3626.9,3625.9,2.75793512]
[1753411712239,5.885,3626.9,3624.6,0.8171]
[1753411712240,0.782,3625.9,3624.6,0.8171]
[1753411712440,6.3024,3625.8,3624.5,1e-08]
[1753411712736,6.3024,3625.8,3624.0,0.004]
[1753411712737,2.75930269,3624.2,3623.1,0.04]
[1753411712922,5.85,3624.1,3623.1,0.04]
[1753411713123,0.55,3624.0,3623.1,0.04]
[1753411713433,0.4594,3624.8,3623.2,0.4348]
[1753411713633,0.782,3625.0,3623.4,3.57687107]
[1753411713841,5.905,3625.0,3623.5,0.4348]
[1753411714439,0.782,3625.6,3624.6,2.75891499]
[1753411714623,2.75794529,3625.9,3624.5,0.8171]
[1753411714624,0.57304304,3625.9,3624.5,0.8171]
[1753411714822,0.782,3626.6,3624.7,0.4348]
[1753411715023,5.896,3627.2,3626.2,2.7576574]
[1753411715210,0.39836776,3627.1,3625.9,0.8171]
[1753411715416,0.39836776,3627.1,3626.6,2.75740289]
[1753411715599,0.24895958,3627.1,3626.7,2.75730087]
[1753411715800,0.24895958,3627.1,3625.9,0.8171]
[1753411716005,1.03095958,3627.3,3625.9,0.8171]
[1753411716202,0.782,3627.3,3626.7,2.75731135]
[1753411716404,0.4594,3626.8,3625.3,0.8171]
[1753411716620,3.21665301,3626.8,3625.8,2.75801165]
[1753411716820,0.4594,3626.8,3625.6,2.75808918]
[1753411717022,0.55,3626.7,3625.3,0.8171]
[1753411717222,0.24923618,3626.7,3625.9,2.75790289]
[1753411717423,0.24923618,3626.7,3624.6,3.25852278]
[1753411717424,4.332,3626.5,3624.6,0.8171]
[1753411717627,0.55,3626.2,3624.6,3.57602031]
[1753411717824,0.85816315,3626.4,3624.6,0.8171]
[1753411718034,0.85816315,3626.4,3624.7,3.19361057]
[1753411718035,3.0,3626.2,3624.7,3.19361057]
[1753411718409,3.0,3626.2,3624.7,0.4348]
[1753411718614,3.0,3626.2,3624.9,2.75869679]
[1753411718811,0.782,3626.5,3625.3,2.75832216]
[1753411719142,0.782,3626.5,3624.6,0.8171]
[1753411719143,0.55,3626.4,3624.6,0.8171]
[1753411719344,0.55,3626.2,3624.6,0.8171]
[1753411719549,2.75801933,3625.8,3624.7,2.758849]
[1753411719733,1.2391,3626.3,3625.3,0.001]
[1753411720111,0.1376,3625.4,3625.3,0.001]
[1753411721815,0.1376,3625.4,3624.5,2.75895625]
[1753411721816,0.8009,3624.3,3623.1,0.04]
[1753411722156,6.8524,3624.2,3623.1,0.04]
[1753411722457,0.55,3624.0,3623.1,0.04]
[1753411722750,2.75945804,3623.9,3623.1,0.04]
[1753411722936,2.7595015,3623.9,3623.1,0.04]
[1753411723255,2.75947562,3623.9,3623.1,0.04]
[1753411723612,3.0,3624.1,3623.1,0.04]
[1753411723841,2.75956379,3623.8,3623.1,0.04]
[1753411724415,3.0,3624.1,3623.1,0.04]
[1753411724615,6.8524,3624.2,3623.1,0.04]
[1753411724816,6.3634,3624.2,3623.1,0.04]
[1753411725012,0.7813,3625.0,3623.1,0.04]
[1753411725313,0.24869302,3625.0,3623.3,0.7957]
[1753411725528,2.75832317,3625.4,3624.3,2.75908519]
[1753411725855,0.24869302,3625.3,3624.3,2.75912036]
[1753411726077,2.75854459,3625.1,3623.9,2.75943938]
[1753411726218,0.4414,3625.1,3623.6,0.4628]
[1753411726558,0.24869302,3625.7,3623.8,0.8044]
[1753411726716,0.04,3625.9,3623.9,0.95759458]
[1753411726922,0.04,3625.9,3624.2,2.75922962]
[1753411727259,2.79800009,3625.9,3624.3,0.4628]
[1753411727450,2.79800009,3625.9,3624.4,2.75907736]
[1753411727451,0.24869302,3625.8,3624.4,2.75907736]
[1753411727652,0.28869302,3625.9,3624.6,2.75885026]
[1753411727961,0.28869302,3625.9,3624.8,2.75877289]
[1753411728126,0.28869302,3625.9,3624.7,0.95758849]
[1753411728127,0.04,3625.9,3625.8,2.75801202]
[1753411728326,0.04,3625.9,3625.8,4.02011202]
[1753411728526,0.04,3625.9,3625.8,4.48731202]
[1753411728924,0.04,3625.9,3625.8,0.7993]
[1753411729124,0.04,3625.9,3625.3,2.75832551]
[1753411729370,0.04,3625.9,3625.0,0.7993]
[1753411729568,0.04,3625.9,3625.1,2.75854459]
[1753411729736,0.04,3625.9,3624.0,8.62533577]
[1753411729737,0.55,3625.6,3622.8,0.7993]
[1753411729940,7.1085,3625.5,3623.2,0.82689991]
[1753411730136,0.55,3625.2,3623.2,0.7993]
[1753411730464,2.75870738,3624.9,3623.2,0.7993]
[1753411730780,2.75892428,3624.7,3623.5,2.75971093]
[1753411730962,5.873,3625.0,3623.2,0.7993]
[1753411731158,5.873,3625.0,3623.2,0.004]
[1753411731159,0.55,3624.5,3623.2,0.004]
[1753411731327,2.75958865,3623.8,3623.2,0.004]
[1753411731529,1.2886,3624.6,3623.2,0.004]
[1753411731846,3.5501306,3624.6,3623.5,2.75975429]
[1753411732028,3.5501306,3624.6,3623.2,2.76398944]
[1753411732029,2.7587574,3624.9,3623.2,0.03159991]
[1753411732227,0.1376,3623.8,3623.2,0.004]
[1753411732430,5.864,3625.0,3623.6,2.75966391]
[1753411732431,2.75885797,3624.7,3623.6,2.75966391]
[1753411732630,0.4414,3624.9,3623.2,0.004]
[1753411732830,3.55441499,3623.3,3623.1,0.04]
[1753411733040,6.6716,3623.2,3623.1,0.04]
[1753411733343,0.1376,3623.2,3623.1,0.04]
[1753411733977,0.4974,3625.0,3623.1,0.04]
[1753411734164,0.4974,3625.0,3623.3,0.7823]
[1753411734358,0.8277,3625.1,3623.9,2.75944687]
[1753411734560,0.8277,3625.1,3623.5,2.75976266]
[1753411734729,2.75832063,3625.4,3624.3,2.75911]
[1753411734936,2.75824054,3625.5,3624.3,2.75911]
[1753411735271,2.7583924,3625.3,3623.4,2.75978424]
[1753411735443,0.9388,3625.4,3623.3,0.7823]
[1753411735660,3.69714514,3625.4,3623.4,0.93]
[1753411735842,2.7583924,3625.3,3623.4,0.93]
[1753411736079,2.7592426,3624.2,3623.3,0.7823]
[1753411736368,0.4414,3624.7,3623.1,0.04]
[1753411736880,3.20027639,3624.7,3623.3,2.75989541]
[1753411737179,0.4414,3625.2,3623.9,2.75945495]
[1753411737355,0.4974,3625.6,3624.0,0.81219381]
[1753411737530,0.4974,3625.6,3624.4,2.75907389]
[1753411737531,2.75828638,3625.5,3624.4,2.75907389]
[1753411737930,3.25556619,3625.6,3624.5,2.75899262]
[1753411738201,0.4974,3625.6,3624.5,2.75899262]
[1753411738388,0.8587,3625.9,3624.6,0.4672]
[1753411738534,0.04,3625.9,3624.7,0.7846]
[1753411738845,0.04,3625.9,3624.8,0.4628]
[1753411739046,0.04,3625.9,3624.9,0.02758696]
[1753411739260,0.04,3625.9,3625.0,0.4628]
[1753411739438,0.04,3625.9,3624.7,0.7846]
[1753411739633,0.04,3625.9,3624.8,0.4628]
[1753411739858,0.04,3625.9,3625.4,0.7874]
[1753411740071,0.04,3625.9,3624.3,0.7874]
[1753411740269,0.04,3625.9,3625.5,0.7874]
[1753411740538,0.04,3625.9,3625.8,2.75801202]
[1753411740737,0.04,3625.9,3625.8,2.78559214]
[1753411740935,0.002,3626.7,3625.8,1.74498012]
[1753411741164,0.002,3626.7,3625.8,0.7874]
[1753411741376,0.8039,3626.7,3624.7,1.261]
[1753411741536,0.9388,3626.6,3624.7,0.7982]
[1753411741738,0.8039,3626.7,3624.8,0.4628]
[1753411742028,0.002,3626.7,3625.0,0.7921]
[1753411742176,0.002,3626.7,3624.9,0.49478696]
[1753411742177,0.002,3626.7,3625.3,3.7921]
[1753411742349,0.002,3626.7,3625.4,0.7921]
[1753411742539,0.002,3626.7,3626.6,2.75740362]
[1753411742739,0.002,3626.7,3626.6,0.7559]
[1753411742985,0.002,3626.7,3626.6,3.97610362]
[1753411743285,0.002,3626.7,3626.6,0.7559]
[1753411743590,0.002,3626.7,3626.6,1.2187]
[1753411743798,0.002,3626.7,3626.4,2.75748262]
[1753411744073,0.1376,3626.5,3625.9,0.1376]
[1753411744370,0.1376,3626.3,3625.8,0.1376]
[1753411744572,0.002,3626.7,3625.9,0.49037935]
[1753411744772,0.1376,3626.5,3626.0,0.1376]
[1753411744937,0.002,3626.7,3626.6,2.75740362]
[1753411745138,0.002,3626.7,3626.6,3.50930362]
[1753411745377,0.002,3626.7,3626.6,4.57690362]
[1753411746086,0.002,3626.7,3626.6,4.60447765]
[1753411746286,0.002,3627.7,3626.7,0.7519]
[1753411746461,0.002,3627.7,3626.8,5.97257251]
[1753411746786,0.002,3627.7,3627.5,2.75667605]
[1753411746989,0.002,3627.7,3626.9,2.78474729]
[1753411746990,0.002,3627.7,3627.6,0.7519]
[1753411747144,2.46631494,3628.7,3627.6,0.7519]
[1753411747145,2.46631494,3628.8,3627.6,0.7519]
[1753411747347,1.89296329,3629.0,3627.6,1.2147]
[1753411747567,1.89296329,3629.0,3627.7,2.75650328]
[1753411747788,2.50831494,3628.9,3627.6,1.2147]
[1753411747983,2.75652312,3627.8,3626.5,2.75741513]
[1753411748161,1.89296329,3628.5,3626.5,0.4628]
[1753411748360,2.75634239,3628.0,3626.9,2.7571256]
[1753411748573,3.69484203,3628.4,3627.0,2.75707737]
[1753411748780,2.75635631,3628.0,3626.6,3.22454046]
[1753411748964,2.75626265,3628.2,3626.6,0.4672]
[1753411749164,1.89296329,3628.6,3626.7,0.93]
[1753411749401,1.89296329,3628.6,3626.9,0.8081]
[1753411749604,0.042,3628.9,3627.4,0.8081]
[1753411749809,0.04,3629.9,3629.3,2.75535227]
[1753411749810,2.36820411,3629.8,3629.3,2.75535227]
[1753411749953,2.36820411,3629.8,3629.0,6.455525]
[1753411749954,0.002,3629.8,3629.5,2.75519876]
[1753411750160,0.002,3629.8,3629.6,2.78267577]
[1753411750566,0.002,3629.8,3629.6,2.75512453]
[1753411751668,0.002,3629.8,3629.2,2.75540998]
[1753411751669,0.002,3629.8,3628.7,0.7937]
[1753411751878,0.002,3629.8,3629.0,2.75556329]
[1753411752093,0.7485,3631.7,3629.4,0.6021]
[1753411752275,3.31268576,3631.4,3631.0,0.6021]
[1753411752596,0.7485,3631.7,3630.9,2.75406434]
[1753411752759,0.7485,3631.7,3630.8,2.75417948]
[1753411752962,0.7485,3631.7,3630.5,2.7543759]
[1753411753204,0.7485,3631.7,3629.9,2.75489682]
[1753411753501,0.7485,3631.7,3631.6,2.75360722]
[1753411754301,0.04,3632.9,3632.8,2.75269764]
[1753411754776,0.04,3632.9,3632.8,2.78022461]
[1753411754977,0.04,3632.9,3629.2,3.003083]
[1753411754978,0.8142,3632.8,3629.2,3.003083]
[1753411755162,6.25449583,3632.7,3629.5,2.75520044]
[1753411755362,9.8232,3632.6,3631.0,2.75404657]
[1753411755601,9.8232,3632.6,3631.1,0.80193986]
[1753411755602,6.455,3632.5,3631.1,0.80193986]
[1753411755785,6.455,3632.5,3631.1,0.7744]
[1753411755786,0.57752714,3632.4,3631.1,0.7744]
[1753411756166,0.57752714,3632.4,3629.8,0.7744]
[1753411756167,0.9133,3632.3,3629.8,0.7744]
[1753411756363,0.7636,3631.6,3630.6,0.1376]
[1753411756674,0.1376,3631.0,3630.4,2.8920963]
[1753411756873,0.57752714,3631.5,3630.1,0.04]
[1753411757074,0.1376,3630.6,3630.1,0.04]
[1753411757277,3.0,3631.1,3630.1,0.04]
[1753411757580,0.1376,3630.2,3630.1,0.04]
[1753411757787,0.8006,3631.4,3630.1,0.04]
[1753411757963,0.1376,3630.8,3630.1,0.1776]
[1753411758304,0.1376,3630.8,3630.3,2.89213534]
[1753411758623,0.1376,3631.0,3630.4,0.83414517]
[1753411758901,0.1376,3631.0,3630.5,0.1376]
[1753411759081,0.8006,3631.9,3630.8,2.75421373]
[1753411759400,0.1376,3631.4,3630.9,0.1376]
[1753411759601,2.75368305,3631.5,3630.4,0.8066]
[1753411759801,0.55,3631.8,3630.4,0.8066]
[1753411759802,0.55,3631.6,3630.4,0.8066]
[1753411760101,2.75375888,3631.4,3630.4,3.56111285]
[1753411760406,2.75375888,3631.4,3630.4,2.754502]
[1753411760603,3.19008775,3631.7,3630.5,0.02754441]
[1753411760604,0.4365,3631.7,3630.5,0.02754441]
[1753411760818,0.002,3632.1,3630.2,0.7954]
[1753411761000,0.002,3632.1,3630.2,2.75466916]
[1753411761190,0.002,3632.1,3631.7,2.7535181]
[1753411761524,0.002,3632.1,3631.8,0.02753455]
[1753411761813,0.002,3632.1,3631.9,2.753377]
[1753411762115,0.002,3632.1,3632.0,2.75330396]
[1753411762774,0.002,3632.1,3632.0,3.54870396]
[1753411762973,1e-08,3632.1,3632.0,3.57623699]
[1753411763510,1e-08,3632.1,3632.0,12.40223699]
[1753411763674,1e-08,3632.1,3632.0,12.37470396]
[1753411764475,6.1541307,3636.1,3632.2,13.1940884]
[1753411764676,6.07698778,3635.7,3632.6,5.50569838]
[1753411764914,0.14713616,3635.6,3632.8,30.0]
[1753411765078,0.14713616,3636.0,3634.7,2.75124229]
[1753411765281,1.6883,3635.8,3633.1,3.0]
[1753411765491,2.75050196,3635.7,3634.3,2.75149892]
[1753411765694,0.14713616,3635.7,3634.4,0.02751485]
[1753411766030,0.4768,3635.6,3633.3,6.6735]
[1753411766180,0.55,3635.5,3633.3,0.8295]
[1753411766526,0.8024,3634.5,3632.7,0.8112]
[1753411766830,1.0268,3634.4,3632.7,0.8112]
[1753411767061,0.55,3634.1,3632.1,3.60442592]
[1753411767197,0.4768,3634.1,3633.0,2.75248209]
[1753411767401,0.55,3634.0,3633.1,0.04]
[1753411767601,0.55,3633.5,3633.1,0.04]
[1753411767926,3.30239458,3633.2,3633.1,0.04]
[1753411768270,7.98469458,3633.2,3633.1,0.04]
[1753411768524,7.98469458,3633.2,3632.1,0.04]
[1753411768525,0.55,3632.2,3632.1,0.04]
[1753411768689,3.30315235,3632.2,3632.1,0.04]
[1753411768889,1.4633,3632.2,3632.1,0.04]
[1753411769296,0.9865,3632.2,3632.1,0.04]
[1753411769613,4.35405235,3632.2,3632.1,0.04]
[1753411769827,7.98545235,3632.2,3632.1,0.04]
[1753411770125,2.75301449,3632.4,3632.1,0.04]
[1753411770126,2.75285825,3632.6,3632.1,0.04]
[1753411770280,0.769,3632.8,3632.1,0.04]
[1753411770281,0.55,3632.4,3632.1,0.04]
[1753411770484,0.9133,3632.9,3632.1,0.04]
[1753411770685,0.55,3632.8,3632.3,2.75307656]
[1753411770899,0.55,3632.8,3632.4,2.7529907]
[1753411771211,3.769,3633.2,3632.5,2.75292015]
[1753411771413,3.22933966,3633.1,3632.1,0.04]
[1753411771612,0.55,3632.8,3632.1,0.04]
[1753411771781,3.30270528,3632.8,3632.1,0.04]
[1753411771977,0.55,3632.8,3632.1,2.79322704]
[1753411772223,0.9133,3633.1,3632.1,0.04]
[1753411772529,1.7256,3633.8,3633.0,2.75251041]
[1753411772684,1.7256,3633.8,3633.1,2.75246459]
[1753411772878,1.7256,3633.8,3632.8,2.75264552]
[1753411773115,3.0,3633.6,3632.9,2.75259923]
[1753411773301,1.7256,3633.8,3633.0,0.02752546]
[1753411773483,1.7123,3634.4,3632.3,2.75307208]
[1753411773684,2.75216123,3633.6,3632.6,2.75278146]
[1753411773879,0.55,3633.6,3632.2,5.766]
[1753411774081,0.9133,3633.9,3632.1,0.04]
[1753411774286,0.4768,3635.4,3632.8,0.7665]
[1753411774524,0.4768,3634.8,3632.9,5.81552621]
[1753411774711,0.4768,3634.8,3633.0,5.787]
[1753411775024,0.4768,3634.8,3633.3,2.75228639]
[1753411775320,0.4768,3634.8,3632.9,2.75262187]
[1753411775321,1.94088288,3634.9,3633.4,5.781]
[1753411775525,0.04,3634.9,3634.4,2.75145501]
[1753411775696,0.04,3634.9,3634.5,0.0275141]
[1753411775896,0.04,3634.9,3633.4,5.781]
[1753411776397,0.04,3634.9,3633.5,0.8126]
[1753411776585,0.4768,3634.8,3633.5,0.8126]
[1753411776786,0.9133,3634.8,3632.9,0.824]
[1753411777035,0.04,3634.9,3633.0,0.0987]
[1753411777324,0.04,3634.9,3634.2,2.75159895]
[1753411777523,0.55,3634.8,3633.1,2.75247034]
[1753411777726,0.55,3634.8,3633.0,0.0987]
[1753411778025,0.55,3634.6,3634.0,2.75177927]
[1753411778224,0.55,3634.6,3633.0,0.0987]
[1753411778523,0.04,3634.9,3633.2,2.75238405]
[1753411778723,0.55,3634.8,3634.1,2.75169511]
[1753411779019,3.30119677,3634.8,3634.0,2.75175735]
[1753411779226,0.49916687,3635.3,3634.1,6.64181712]
[1753411779429,0.04,3635.9,3634.3,2.75156151]
[1753411779645,0.04,3635.9,3634.5,2.75141009]
[1753411779937,0.04,3635.9,3635.3,2.75073594]
[1753411780138,3.66373323,3635.8,3634.9,2.75104317]
[1753411780341,0.55,3635.2,3634.9,2.75110562]
[1753411780542,0.55,3635.0,3633.6,7.916]
[1753411780688,0.6876,3634.8,3634.1,0.1376]
[1753411780886,0.55,3634.5,3634.1,2.8893068]
[1753411781121,0.55,3634.5,3634.4,2.7514858]
[1753411781325,0.55,3634.5,3633.6,0.755]
[1753411781527,1.2438,3635.7,3633.7,0.7956]
[1753411781728,0.1376,3635.2,3633.7,0.7956]
[1753411781902,0.55,3634.8,3634.4,0.1376]
[1753411782102,0.55,3634.8,3633.7,0.7956]
[1753411782103,0.55,3634.8,3634.1,2.75170678]
[1753411782316,0.55,3634.6,3634.2,0.1376]
[1753411782620,1.90088288,3635.3,3634.2,0.1376]
[1753411782621,0.6876,3634.8,3634.2,2.8892216]
[1753411782825,2.45088288,3634.8,3634.1,2.75168639]
[1753411782999,0.1376,3634.6,3634.1,0.1376]
[1753411783335,2.45088288,3634.8,3634.6,2.75131347]
[1753411783538,0.55,3634.9,3634.6,2.75131347]
[1753411785826,0.55,3632.7,3632.1,0.04]
[1753411786127,0.55,3632.5,3632.1,0.04]
[1753411786434,0.02751561,3632.6,3632.1,0.04]
[1753411786435,3.30315235,3632.2,3632.1,0.04]
[1753411786645,5.04246796,3632.2,3632.1,0.04]
[1753411786953,5.01495235,3632.2,3632.1,0.04]
[1753411787115,1.3445,3632.2,3632.1,0.04]
[1753411787601,0.55,3632.2,3632.1,0.04]
[1753411788036,3.20398951,3632.9,3632.1,0.04]
[1753411788037,0.8107,3633.6,3632.1,0.4981]
[1753411788627,2.7522985,3633.4,3632.4,2.7529862]
[1753411788814,0.8107,3633.6,3632.1,0.04]
[1753411789143,2.75141716,3634.5,3632.6,0.7851]
[1753411789321,1.2942,3634.9,3632.9,2.75262187]
[1753411789516,1.2942,3634.9,3633.9,2.75186027]
[1753411789735,1.2942,3634.9,3634.2,2.75162913]
[1753411789933,0.8282,3634.9,3633.8,2.75194011]
[1753411790140,0.04,3634.9,3633.9,0.8176]
[1753411790338,0.04,3634.9,3634.0,0.02751788]
[1753411790540,0.04,3634.9,3634.8,2.751183]
[1753411790706,0.04,3634.9,3634.8,3.23679483]
[1753411790908,0.002,3635.6,3635.5,2.75065328]
[1753411791137,0.002,3635.6,3635.5,2.77815981]
[1753411791339,0.002,3635.6,3635.1,0.4581]
[1753411791542,0.002,3635.6,3635.2,0.0275088]
[1753411791747,0.002,3635.6,3635.2,0.4581]
[1753411791926,0.002,3635.6,3634.6,0.8176]
[1753411791927,0.002,3635.6,3635.5,2.75065328]
[1753411792106,0.002,3635.6,3634.6,0.8176]
[1753411792449,0.002,3635.6,3635.5,2.75065328]
[1753411792949,0.04,3635.9,3635.5,2.75065328]
[1753411792950,0.04,3635.9,3635.8,2.75042631]
[1753411793264,1e-08,3635.9,3635.8,2.77793057]
[1753411793477,1e-08,3635.9,3635.8,2.75042631]
[1753411793753,1e-08,3636.1,3636.0,2.75027502]
[1753411794259,1e-08,3636.1,3636.0,3.33257777]
[1753411794473,1e-08,3636.1,3636.0,3.30507502]
[1753411794621,1e-08,3636.1,3636.0,3.44267502]
[1753411794822,1e-08,3636.4,3636.3,2.75004812]
[1753411795024,0.002,3637.6,3637.5,2.74914089]
[1753411795513,0.002,3637.6,3637.5,0.5957]
[1753411795722,0.002,3637.6,3637.5,2.88674089]
[1753411795951,0.002,3637.6,3637.5,3.34484089]
[1753411796275,0.002,3637.6,3637.5,0.1376]
[1753411796559,0.002,3637.6,3634.1,2.79165185]
[1753411796560,0.468,3637.6,3636.2,0.4581]
[1753411796906,0.002,3637.6,3636.2,0.4581]
[1753411797149,0.002,3637.6,3636.2,3.20818187]
[1753411797346,0.002,3637.6,3636.6,2.74977477]
[1753411797514,0.002,3637.6,3636.7,0.02749745]
[1753411797710,0.002,3637.6,3636.8,0.4581]
[1753411798031,0.002,3637.6,3636.8,6.2121]
[1753411798445,0.002,3637.6,3636.9,1.3191]
[1753411798873,0.002,3637.6,3636.9,1.2224]
[1753411799069,0.002,3637.6,3637.0,5.747]
[1753411799269,0.002,3637.6,3636.9,1.2224]